Workbook

Sheet dati impostazione
A1: Dati
A2: SAU ammissibile in IT | C2: ha | D2: 12,000,000
A3: Massimale IT | B3: 2014 | C3: euro | D3: 3,953,394,000
B4: 2015 | C4: euro | D4: 3,902,039,000
B5: 2016 | C5: euro | D5: 3,850,805,000
B6: 2017 | C6: euro | D6: 3,799,540,000
B7: 2018 | C7: euro | D7: 3,751,937,000
B8: 2019 | C8: euro | D8: 3,704,337,000
B9: 2020 | C9: euro | D9: 3,704,337,000
A11: Massimale 2013 (allegato VIII, Reg. 914/2013) | C11: euro | D11: 4,379,985,000
A12: Massimale 2014 (allegato VIII, Reg. 1310/2013) | C12: euro | D12: =+D3 -> 3,953,394,000
A13: Mssimale regime di pagamento unico (Reg. 1044/2014) | C13: euro | D13: 3,769,644,000
A14: Riduzione massimale | C14: % | D14: 8.41
A15: Riduzione disciplina finanziaria | C15: % | D15: 1.302214%
A17: REGIONE UNICA
A18: Percentuale pagamento di base | C18: % | D18: =(1-0.3-0.11-D24-0.0174)*1.03 -> 57.95% | E18: 58% base, 30% greening, 1% giovani, 11% accoppiato, 1,74% riserva, +3% overbooking massimale
A19: Massimale nazionale pagamento di base | C19: euro | D19: =+$D$4*D18 -> 2,261,145,756
A20: Importo pagamenti 2014 | C20: euro | D20: =+$D$12 -> 3,953,394,000
A21: X / Y | C21: % | D21: =+D19/D20 -> 57.2%
A22: VUN | C22: euro/ha | D22: =+$D$8/$D$2*D18 -> 179
A23: GIOVANE AGRICOLTORE
A24: Percentuale del massimale | C24: % | D24: 1.00%
A25: Condizione | C25: Si | D25: No
B27: Autori: Angelo Frascarelli, Gabriele Chiodini, Stefano Ciliberti
A30: Informativa sulla licenza: | B30: http://creativecommons.org/licenses/by-nc-sa/4.0/legalcode
A31: Informativa sull'esonero da responsabilità: | B31: http://creativecommons.org/licenses/by-nc-sa/4.0/

Sheet Maschera di Calcolo
A1: MASCHERA DI CALCOLO DEI PAGAMENTI DIRETTI 2014-2020 | J1: GRAFICO DEL RISULTATO
B2: dell'azienda:
A3: ® Angelo Frascarelli, Gabriele Chiodini, Stefano Ciliberti
A4: DATI DI INPUT | C4: U.M. | D4: Valori
A5: Valore dei titoli al 01/12/2014 attivati dall'agricoltore | C5: euro | D5: 30,000.00 | E5: (inserire valore valore titoli 2014 dopo riduzione del 8,41%)
A6: SAU 2014 | C6: ettari | D6: 15.00 | E6: (inserire SAU domanda 2014)
A7: Valore medio dei titoli 2014 | C7: euro | D7: =+IF(D5=0,"n.d.",D5/D6) -> 2,000.00
A8: Articolo 68 | C8: euro | E8: (immettere valore pagamenti ricevuti con art. 68)
A9: Rapporto ariticolo 68/valore dei titoli | C9: % | D9: =+D8/D12 -> 0%
A10: Giovane agricoltore | C10: info | D10: No | E10: (immettere "si" se giovane agricoltore; altrimenti "no")
A11: =+IF(D10="Si", "Da che anno è giovane agricoltore?","") ->  | C11: anno | E11: (prima del 2011; 2011; 2012; 2013; 2014; 2015; dal 2016)
A12: Totale pagamenti diretti | C12: euro | D12: =+D5+D8 -> 30,000.00 | G12: =+IF(AND(D15<>0,D8=""),"Attenzione compilare anche la cella D8",IF(D15>D8,"Attenzione il valore della cella D15 deve essere minore o uguale di quello della cella D8","")) -> 
A13: Riduzione disciplina finanziaria | C13: euro | D13: =IF(D12>2000,(D12-2000)*'dati impostazione'!$D$15,0) -> 364.62
A14: Pagamenti ricevuti nel 2014 | C14: euro | D14: =+D12-D13 -> 29,635.38
A15: Articolo 68 compreso nel calcolo VUI | C15: euro | E15: (tabacco, patate, Danae Racemosa)
A16: Rapporto Artcolo 68 compreso nel VUI/Articolo 68 tot | C16: % | D16: =+D15/D8 -> 
A17: Pagamenti ricevuti nel 2014 - art. 26 Reg. 1307/2013 (A) | C17: euro | D17: =+IF(D8="",B49,B49+D15-D13*D16*D9) -> 29,635.38
A18: Sostegno accoppiato (art. 52 reg. 1307/2013) | C18: euro | D18: =+'Pagamento accoppiato'!H24 -> 0 | E18: (compilare il foglio apposito)
A19: SAU 2015 (B) | C19: ettari | E19: (Inserire solo se diverso dal 2014)
A20: Valutare il rispetto del greening in relazione alle scelte? | C20: info | D20: Premere qui
A21: Dal 2014 al 2015 la SAU si è ridotta per la scadenza di un contratto di affitto di durata inferiore ad 1 anno? | D21: No
A22: Inserire il costo del lavoro | C22: euro
A23: X / Y | C23: % | D23: =+'dati impostazione'!$D$21 -> 57.2%
A24: Valore unitario iniziale (X / Y) * (A / B) | C24: euro | D24: =+D23*D17/D30 -> 1,130.00
A25: Tipo di criterio di calcolo | C25: euro | D25: =+IF(D31<-30,1,IF(D31<0,2,IF(D32>90,3,IF(D38>60,4,IF(D7="n.d.",5,5))))) -> 1
A26: Tipo di calcolo: | B26: =+IF(D25=1,"Azienda che perde massimo il 30% del VUI",IF(D25=2,"Azienda che perde meno del 30% del VUI",IF(D25=3,"Azienda in cui il VUI è oltre il 90% del VUN",IF(D25=4,"Azienda in cui il VUI è meno del 90% del VUN ma al 2019 il VUI è superiore al 60% del VUN","Azienda che deve raggiungere il 60% del VUN")))) -> Azienda che perde massimo il 30% del VUI
B27: =+IF(D19="","",IF(OR(AND(D19<D6,D40>1000,D21="Si"),AND(D19<D6,D21="No")),"ma che incorre negli effetti del guadagno insperato","")) -> 
B28: =+IF(OR(C46>150000,D46>150000,E46>150000,F46>150000,G46>150000,H46>150000),"e che è soggetta alla riduzione dei pagamenti diretti (degressività)","") -> 
F29: Cond.Rispetto greeing | G29: =+IF(D19="",IF(D6>=10,"Si","No"),IF(D19>=10,"Si","No")) -> Si
A30: SAU 2015 | C30: ha | D30: =+IF(D19="",D6,D19) -> 15.00 | F30: Valutare il greening
A31: Variazione | C31: % | D31: =+IF(D7="n.d.","parte da zero",(D34-D33)/D33*100) -> -84.17 | F31: Rispetta il greening? | G31: si
A32: Rapporto VUI 2015/VUN 2019 | C32: % | D32: =+D33/D34*100 -> 631.70
A33: VUI*SAU=PB 2015 (standard - VUI) | C33: euro | D33: =+(D24*D30) -> 16,950 | F33: Degressività? | G33: =+IF(OR(C46>150000,D46>150000,E46>150000,F46>150000,G46>150000,H46>150000),"si","no") -> no
A34: VUN*SAU=PB 2019 (standard - VUN) | C34: euro | D34: =+'dati impostazione'!D22*'Maschera di Calcolo'!D30 -> 2,683.2
A35: VU*SAU=PB 2019 ridotto (riduzione del 70% del PB 2015) | C35: euro | D35: =+D24*D30*0.7 -> 11,864.98 | F35: Legenda = | G35: 1 perdita oltre il 30 vui
A36: Differenza di 1/3 da recuperare tra VUI e 90%VUN | C36: euro | D36: =+(D34*0.9-D33)*(1/3) -> -4,845.02 | G36: 2 perdita sotto il 30 del vui
A37: PB 2019 (aumentato di 1/3 della differenza tra VUI e 90% VUN) | C37: euro | D37: =+D33+D36 -> 12,104.95 | G37: 3 calcolo normale-nessuna variazione
A38: Rapporto VU 2019/VUN 2019 | C38: % | D38: =+(D37/D30)/'dati impostazione'!D22*100 -> 451.13 | G38: 4 aumento normale - perché VUI<90% VUN
A39: Soglia del 60% del PB | C39: euro | D39: =+D34*0.6 -> 1,610 | G39: 5 aumento forzato al 60% VUN
A40: Eventuale aumento da versare nella riserva per guadagno insperato | C40: euro | D40: =+(C44-C45)/2 -> 7,966
A42: Valore dei titoli di base dell'azienda (€)
A43: Anno | B43: 2014 | C43: 2015 | D43: 2016 | E43: 2017 | F43: 2018 | G43: 2019 | H43: 2020
A44: Calcolati sulla SAU 2014 | C44: =+IF($D$25=1,$D$35+(+$D$24*$D$30-$D$35)/5*4,IF($D$25=2,$D$34+($D$24*$D$30-$D$34)/5*4,IF($D$25=3,$D$33,IF($D$25=4,$D$33+$D$36/5*1,$D$33+($D$39-$D$33)/5*1)))) -> 15,932.97 | D44: =+IF($D$25=1,$D$35+(+$D$24*$D$30-$D$35)/5*3,IF($D$25=2,$D$34+($D$24*$D$30-$D$34)/5*3,IF($D$25=3,$D$33,IF($D$25=4,$D$33+$D$36/5*2,$D$33+($D$39-$D$33)/5*2)))) -> 14,915.97 | E44: =+IF($D$25=1,$D$35+(+$D$24*$D$30-$D$35)/5*2,IF($D$25=2,$D$34+($D$24*$D$30-$D$34)/5*2,IF($D$25=3,$D$33,IF($D$25=4,$D$33+$D$36/5*3,$D$33+($D$39-$D$33)/5*3)))) -> 13,898.98 | F44: =+IF($D$25=1,$D$35+(+$D$24*$D$30-$D$35)/5*1,IF($D$25=2,$D$34+($D$24*$D$30-$D$34)/5*1,IF($D$25=3,$D$33,IF($D$25=4,$D$33+$D$36/5*4,$D$33+($D$39-$D$33)/5*4)))) -> 12,881.98 | G44: =+IF($D$25=1,$D$35,IF($D$25=2,$D$34,IF($D$25=3,$D$33,IF($D$25=4,$D$33+$D$36,$D$39)))) -> 11,864.98 | H44: =+IF($D$25=1,$D$35,IF($D$25=2,$D$34,IF($D$25=3,$D$33,IF($D$25=4,$D$33+$D$36,$D$39)))) -> 11,864.98
A45: Calcolati sulla SAU 2015 | C45: =+C44/$D6*$D19 -> 0.00 | D45: 0.00 | E45: 0.00 | F45: 0.00 | G45: 0.00 | H45: 0.00
A46: Reali (senza eventuale degressività) | C46: =+IF($D19="",C44,IF(OR(AND($D19<$D6,$D40>1000,$D21="Si"),AND($D19<$D6,$D21="No")),(C44-C45)/2+C45,C44)) -> 15,932.97 | D46: 14,915.97 | E46: 13,898.98 | F46: 12,881.98 | G46: 11,864.98 | H46: 11,864.98
A47: Pagamento di base (degressività 150000) | C47: =+IF(C46>(150000+$D22),((C46-(150000+$D22))/2+(150000+$D22)),C46) -> 15,932.97 | D47: 14,915.97 | E47: 13,898.98 | F47: 12,881.98 | G47: 11,864.98 | H47: 11,864.98
A48: Rimanenza costo del lavoro | C48: =+IF(C46=C47,$D22-(C47-150000),0) -> 134,067.03 | D48: 135,084.03 | E48: 136,101.02 | F48: 137,118.02 | G48: 138,135.02 | H48: 138,135.02
A49: Pagamento di base | B49: =+IF(D12>2000,D5-D13*(1-D9),D5) -> 29,635.38 | C49: =+IF(C47>(500000+C48),(500000+C48),C47) -> 15,932.97 | D49: 14,915.97 | E49: 13,898.98 | F49: 12,881.98 | G49: 11,864.98 | H49: 11,864.98
A50: Greening | B50: 0.00 | C50: =+C46*0.3/$D23 -> 8,357.18 | D50: 7,823.74 | E50: 7,290.30 | F50: 6,756.87 | G50: 6,223.43 | H50: 6,223.43
A52: Anno | B52: 2014 | C52: 2015 | D52: 2016 | E52: 2017 | F52: 2018 | G52: 2019 | H52: 2020
B53: euro | C53: euro | D53: euro | E53: euro | F53: euro | G53: euro | H53: euro
A54: Pagamento di base | B54: =+B49 -> 29,635.38 | C54: =+C49 -> 15,932.97 | D54: =+D49 -> 14,915.97 | E54: =+IF(OR($G30="",$G31="Si"),E49,E49-E80) -> 13,898.98 | F54: =+IF(OR($G30="",$G31="Si"),F49,F49-F80) -> 12,881.98 | G54: =+IF(OR($G30="",$G31="Si"),G49,G49-G80) -> 11,864.98 | H54: =+IF(OR($G30="",$G31="Si"),H49,H49-H80) -> 11,864.98
A55: Greening | B55: 0.00 | C55: =+IF(AND($G30="Si",$G$31="No"),C50/$D30*C79,C50) -> 8,357.18 | D55: 7,823.74 | E55: 7,290.30 | F55: 6,756.87 | G55: 6,223.43 | H55: 6,223.43
A56: Giovani agricoltori | B56: 0.00 | C56: =+IF(AND($D$10="si",OR($D$11=2011,$D$11=2012,$D$11=2013,$D$11=2014,$D$11=2015)),IF($D$30<90,C$46*0.25,C$46/$D30*90*0.25),0) -> 0.00 | D56: =+IF(AND($D$10="si",OR($D$11=2012,$D$11=2013,$D$11=2014,$D$11=2015,$D$11="dal 2016")),IF($D$30<90,D46*0.25,D46/D30*90*0.25),0) -> 0.00 | E56: =+IF(AND($D$10="si",OR(D11=2013,D11=2014,D11=2015,D11="dal 2016")),IF($D$30<90,E46*0.25,E46/D30*90*0.25),0) -> 0.00 | F56: =+IF(AND($D$10="si",OR(D11=2014,D11=2015,D11="dal 2016")),IF($D$30<90,F46*0.25,F46/D30*90*0.25),0) -> 0.00 | G56: =+IF(AND($D$10="si",OR(D11=2015,D11="dal 2016")),IF($D$30<90,G46*0.25,G46/D30*90*0.25),0) -> 0.00 | H56: =+IF(AND($D$10="si",D11="dal 2016"),IF($D$30<90,H46*0.25,H46/D30*90*0.25),0) -> 0.00
A57: Accoppiato | B57: =+IF(D12>2000,D8-D13*D9,D8) -> 0.00 | C57: =+$D18 -> 0.00 | D57: 0.00 | E57: 0.00 | F57: 0.00 | G57: 0.00 | H57: 0.00
A58: Totale pagamenti diretti | B58: =SUM(B54:B57) -> 29,635.38 | C58: 24,290.15 | D58: 22,739.71 | E58: 21,189.28 | F58: 19,638.84 | G58: 18,088.41 | H58: 18,088.41
A59: Variazione rispetto al 2014 | C59: =+IF($B$58=0,"n.d.",(C58-$B58)/$B58) -> -18% | D59: -23% | E59: -29% | F59: -34% | G59: -39% | H59: -39%
A60: Perdita per l'applicazione del guadagno Insperato | C60: =+C72 -> -12,145.07 | D60: -11,369.86 | E60: -10,594.64 | F60: -9,819.42 | G60: -9,044.20 | H60: -9,044.20
A61: Perdita per l'applicazione della degressività | C61: =+(C46-C49)*-1 -> 0.00 | D61: 0.00 | E61: 0.00 | F61: 0.00 | G61: 0.00 | H61: 0.00
A62: Perdita per il mancato rispetto del greening | C62: =+C50-C55 -> 0.00 | D62: =+D50-D55 -> 0.00 | E62: =+(E49+E50)-(E54+E55) -> 0.00 | F62: =+(F49+F50)-(F54+F55) -> 0.00 | G62: =+(G49+G50)-(G54+G55) -> 0.00 | H62: =+(H49+H50)-(H54+H55) -> 0.00
A65: Titolo giovani agricoltore Ante Guadagno Insperato | C65: =+IF(AND($D$10="si",OR($D$11=2011,$D$11=2012,$D$11=2013,$D$11=2014,$D$11=2015)),IF($D$6<90,C$44*0.25,C$44/$D6*90*0.25),0) -> 0.00 | D65: 0.00 | E65: 0.00 | F65: 0.00 | G65: 0.00 | H65: 0.00
A67: Effetto Guadagno Insperato
A68: Tipologie pagamenti | C68: 2015 | D68: 2016 | E68: 2017 | F68: 2018 | G68: 2019 | H68: 2020
A69: Perdita pagamento di Base | C69: =+(C45-C44)/2 -> -7,966.49 | D69: -7,457.99 | E69: -6,949.49 | F69: -6,440.99 | G69: -5,932.49 | H69: -5,932.49 | J69: Convalida dati Giovane agricoltore
A70: Perdita greening | C70: =+C69*0.3/$D$23 -> -4,178.59 | D70: -3,911.87 | E70: -3,645.15 | F70: -3,378.43 | G70: -3,111.71 | H70: -3,111.71
A71: Giovani agricoltori | C71: =+(C56-C65)/2 -> 0.00 | D71: 0.00 | E71: 0.00 | F71: 0.00 | G71: 0.00 | H71: 0.00 | L71: Giovane agricoltore | M71: Si | N71: No
A72: Totale | C72: =SUM(C69:C71) -> -12,145 | D72: -11,370 | E72: -10,595 | F72: -9,819 | G72: -9,044 | H72: -9,044
M73: Prima del 2011
M74: 2011
M75: 2012
M76: 2013
A77: Effetti sul Pagamento Greening in relazione alle scelte | C77: 2015 | D77: 2016 | E77: 2017 | F77: 2018 | G77: 2019 | H77: 2020 | M77: 2014
A78: Riduzione superficie non rispetto greening | C78: =IF($G31="No",'Maschera di Calcolo'!$D30,Diversificazione!$C80) ->  | D78: =IF($G31="No",'Maschera di Calcolo'!$D30,Diversificazione!$C80) ->  | E78: =IF($G31="No",'Maschera di Calcolo'!$D30,Diversificazione!$C80) ->  | F78: =IF($G31="No",'Maschera di Calcolo'!$D30,Diversificazione!$C80) ->  | G78: =IF($G31="No",'Maschera di Calcolo'!$D30,Diversificazione!$C80) ->  | H78: =IF($G31="No",'Maschera di Calcolo'!$D30,Diversificazione!$C80) ->  | M78: 2015
A79: Netto SAU soggetto a pagamento greening | C79: =+$D30-C78 ->  | M79: dal 2016
A80: Sanzioni non rispetto greening olre 50% riduzione superfici | E80: =+IF($B82>50,((E50/$D30*E78)/5),0) ->  | F80: =+IF($B82>50,((F50/$D30*F78)/4),0) ->  | G80: =+IF($B82>50,((G50/$D30*G78)/4),0) ->  | H80: =+IF($B82>50,((H50/$D30*H78)/4),0) -> 
A82: Riduzione (%) superfici oggetto di pagamento greening | B82: =+Diversificazione!C83 -> 
A84: Autori: Angelo Frascarelli, Gabriele Chiodini, Stefano Ciliberti
A89: Informativa sulla licenza: | B89: http://creativecommons.org/licenses/by-nc-sa/4.0/legalcode
A90: Informativa sull'esonero da responsabilità: | B90: http://creativecommons.org/licenses/by-nc-sa/4.0/

Sheet Pagamento accoppiato
A1: PAGAMENTI ACCOPPIATI (art. 57 reg. 1307/2013)
A2: SETTORI | B2: MISURA | C2: TERRITORIO | D2: PLAFOND | F2: IMPORTO STIMATO | G2: CONSISTENZA | H2: TOTALE
D3: Milioni di euro | E3: % | F3: euro/capo o euro/ha | G3: v.a. | H3: €
A4: LATTE | B4: Premi alle vacche da latte | C4: nazionale | D4: 75.11 | E4: 17.5 | F4: 56 | H4: =+G4*F4 -> 0
B5: Premi aggiuntivi alle vacche da latte in zone montane | C5: nazionale | D5: 9.87 | E5: 2.3 | F5: 40 | H5: =+G5*F5 -> 0
B6: Premi alle bufale | C6: nazionale | D6: 4.12 | E6: 0.96 | F6: 20 | H6: 0
A7: CARNE | B7: Premi alle vacche nutrici | C7: nazionale | D7: 40.78 | E7: 9.5 | F7: 202 | H7: 0
B8: Vacche nutrici di razza Chianina, Maremmana, Marchigiana, Romagnola, Podolica in allevamenti che aderiscono a piani di risanamento da IBR | C8: nazionale | F8: =+F7*0.2 -> 40.4 | H8: 0
B9: Premi ai bovini macellati 12-24 mesi | C9: nazionale | D9: 66.96 | E9: 15.6 | F9: 46 | H9: 0
B10: Bovini macellati allevati per almeno 12 mesi nelle aziende dei richiedenti o aderenti a sistema di qualità nazionale o regionale o a sistemi di etichettatura facoltativi riconosciuti | C10: nazionale | F10: =+F9*0.3 -> 13.8 | H10: 0
B11: Bovini macellati con certificazione IGP | C11: nazionale | F11: =+F9*0.5 -> 23 | H11: 0
A12: OVI-CAPRINO | B12: Premi alle agnelle | C12: nazionale | D12: 9.49 | E12: 2.21 | F12: 12 | H12: 0
B13: Premi a capi ovi-caprini macellati certifica DOP o IGP | C13: nazionale | D13: 5.54 | E13: 1.29 | F13: 10 | H13: 0
A14: FRUMENTO DURO, COLTURE PROTEICHE E PROTEAGINOSE | B14: Premi alla coltivazione di soia | C14: Piemonte, Lombardia, Veneto, Friuli, Emilia Romagna | D14: 9.87 | E14: 2.3 | F14: 97 | H14: =+IF(G14<=5,G14*F14,(F14*5+(G14-5)*0.1*F14)) -> 0
B15: Premi alla coltivazione di frumento duro | C15: Toscana, Umbria, Marche, Lazio, Abruzzo, Molise, Campania, Puglia, Basilicata, Calabria, Sicilia, Sardegna | D15: 59.88 | E15: 13.95 | F15: 60 | H15: 0
B16: Premi alla coltivazione di colture proteoleaginose | C16: Toscana, Umbria, Marche, Lazio | D16: 14.16 | E16: 3.3 | F16: 80 | H16: 0
B17: Premi alla coltivazione di leguminose da granella | C17: Abruzzo, Molise, Campania, Puglia, Basilicata, Calabria, Sicilia, Sardegna | D17: 11.8 | E17: 2.75 | F17: 90 | H17: 0
A18: RISO | B18: Premi alla coltivazione di riso | C18: nazionale | D18: 22.75 | E18: 5.3 | F18: 120 | H18: 0
A19: BARBABIETOLA | B19: Premi alla coltivazione di barbabietola da zucchero | C19: nazionale | D19: 17.21 | E19: 4.01 | F19: 325 | H19: 0
A20: POMODORO DA INDUSTRIA | B20: Premi alla coltivazione di pomodoro da industria | C20: nazionale | D20: 11.3 | E20: 2.63 | F20: 160 | H20: 0
A21: OLIO DI OLIVA | B21: Premi alle superfici olivicole | C21: Liguria, Puglia, Calabria | D21: 44.29 | E21: 10.3 | F21: 78 | H21: 0
B22: Premi alle superfici olivicole con una pendenza media superiore al 7,5% | C22: Puglia, Calabria | D22: 13.31 | E22: 3.1 | F22: 70 | H22: 0
B23: Premi alle superfici olivicole di particolare rilevanza economica, sociale, territoriale e ambientale | C23: nazionale | D23: 12.88 | E23: 3 | F23: 130 | H23: 0
A24: TOTALE | H24: =SUM(H4:H23) -> 0
A28: Autori: Angelo Frascarelli, Gabriele Chiodini, Stefano Ciliberti
A31: Informativa sulla licenza: | B31: http://creativecommons.org/licenses/by-nc-sa/4.0/legalcode
A32: Informativa sull'esonero da responsabilità: | B32: http://creativecommons.org/licenses/by-nc-sa/4.0/

Sheet Diversificazione (hidden)
A1: Sistema di Calcolo del rispetto del Greening
A2: ® Angelo Frascarelli, Gabriele Chiodini, Stefano Ciliberti
A3: Dati dell'azienda
A4: SAU (ha) | C4: =+'Maschera di Calcolo'!D30 -> 15
A5: L'azienda è biologica? | C5: No
A6: Seminativi (ha) | D6: =+IF((C6+C7+C8)>C4,"Attenzione la superficie a seminativi non può oltrepassare la SAU","") -> 
A7: Colture Permanenti Legnose (ha)
A8: Prati permanenti (ha)
A9: Prati Permanenti convertiti nel 2015 senza autorizzazione (ha)
A10: L'azienda possiede superfici con colture sommerse, destinate ad erba o piante erbacee da foraggio, a riposo o con leguminose? | C10: Si
A11: Indicare la superficie con colture sommerse (ha)
A12: Indicare la superficie a erba o altre piante erbacee da foraggio (ha)
A13: Indicare la superficie a riposo (ha)
A14: Indicare la superficie a leguminose (ha)
A15: Numero di colture praticate sui seminativi (v.a.)
A16: Indicare la superficie occupata alla coltura principale (ha) | C16: 5 | D16: =IF(AND((C13+C12)/C6>0.75,C16="",C32="No",C34="No"),"Inserire il valore della superficie occupata dalla coltura principale, escludendo gli erbai, le foraggere e i terreni a riposo, poiché già indicati","") -> 
A17: Indicare la superficie occupata alla seconda coltura (ha)
A18: Superficie destinata ad Ecological Focus Area (mq) | C18: Premere Qui
A19: =#VALUE! -> 
A22: Convalida dati | B22: Si | C22: No
A24: Altre condizioni
A25: Azienda in cui i seminativi sono occupati per più del 75% da ebai, foraggere o a riposo. | C25: =+IF((C13+C12)/C6>0.75,"Si","No") -> 
A26: Azienda in cui i seminativi rimanenti (non occupati da ebai, foraggere o a riposo) sono occupati al massimo per il 75% da una coltura | C26: =+IF(C25="Si",IF(AND(C16<>0,C16/(C6-(C13+C12))<0.75),"Si","No")) -> 
A27: Esoneri
A28: Azienda senza seminativi e prati permamenti, greening per definizione | C28: =+IF(AND(C4>0,C6="",C9=""),"Si","No") -> Si
A29: Azienda senza seminativi, esonerata dall'obbligo della diversificazione e delle EFA | C29: =+IF(AND(C4>0,C6=""),"Si","No") -> Si
A30: Azienda esonerata dalla diversificazione perché ha medo di 10 ha diseminativi | C30: =+IF(AND(C4>0,C6<=10),"Si","No") -> Si
A31: Azienda esonerata dalle EFA perché ha medo di 15 ha diseminativi | C31: =+IF(AND(C4>0,C6<15),"Si","No") -> Si
A32: Esonerata dalla diversificazione (art. 44-3a) e EFA (46-4b) | C32: =+IF(AND((C12+C13)/C6>0.75,(C6-(C13+C12)<30)),"Si","No") -> 
A33: Esonerata dalle EFA (46-4b) | C33: =+IF(AND((C14+C12+C13)/C6>0.75,(C6-(C14+C13+C12)<30)),"Si","No") -> 
A34: Esonerata dalla diversificazione (artr. 44-3b) e EFA (46-4b) | C34: =+IF(AND((C12+C11+C9)/C4>0.75, (C4-(C12+C11+C9)<30)),"Si","No") -> No
A35: Controllo dati
A36: Superamento SAU | C36: =+IF((C6+C9)>C4,"Superamento SAU","Ok") -> Ok
A37: Superamento SAU | C37: =+IF((C9+C12+C11)>C4,"Superamento SAU","Ok") -> Ok
A38: Superamento seminativi-1 | C38: =+IF((C16+C17)>C6,"Superamento seminativi","Ok") -> Superamento seminativi | D38: 1
A39: Superamento seminativi-2 | C39: =+IF((C12+C13)>C6,"Superamento seminativi","Ok") -> Ok
A41: Risultato
A42: Requisiti da rispettare | C42: Rispetto dei requisiti da parte dell'azienda
A43: Diversificazione | B43: =+IF(C5="Si","No",IF(C4="","n.d.",IF(C6="","No",IF(OR(C6<=10,C32="Si",C34="Si"),"No",IF(C25="Si","Si, almeno 2 colture",IF(AND(C6>10,C6<=30),"Si, almeno 2 colture","Si, almeno 3 colture")))))) -> No | C43: =+IF(B43="No","Si",IF(C4="","n.d.",IF(C26="Si","Si",IF(OR(C15="",C16=""),"Dati insufficienti",IF(AND(C15>=2,B43="Si, almeno 2 colture", C16/C6<=0.75),"Si",IF(C17="","No",IF(AND(C15>=3,C16/C6<=0.75,(C16+C17)/C6<=0.95,C16>0),"Si","No"))))))) -> Si
A44: Prati e pascoli permanenti | B44: =+IF(C5="Si","No",IF(C9="","No",IF(C9>0,"Si","No"))) -> No | C44: =+IF(B44="No","Si",IF(C9>0,"No",)) -> Si
A45: Introduzione Ecological Focus Area | B45: =+IF(C5="Si","No",IF(C4="","n.d.",IF(C6="","No",IF(OR(C33="Si",C34="Si"),"No",IF(C6>15,"Si","No"))))) -> No | C45: =+IF(B45="No","Si",IF(C4="","n.d.",IF(AND(B45="Si",EFA!G25/Diversificazione!C6<0.05),"No","Si"))) -> Si
A46: Rispetto del Greening: | C46: =+IF(C5="Si","Si",IF(C4="","n.d.",IF(AND(C43="Si",C44="Si",C45="Si"),"Si","No"))) -> Si
A48: Ripartizione % superfici | B48: =+C6*0.75 -> 0 | C48: =+C6*0.2 -> 0
A50: Diversificazione: Superamento soglia del 75% coltura principale | C50: 75 | D50: soglia
A51: % Coltura principale | C51: =+C16/C6*100 -> 
A52: Superficie da destinare ad altre colture | C52: =0.25*C6 -> 0
A53: Tasso di differenza | C53: =+(C16-B48)/C52 ->  | D53: eccedenza limite /superficie altre colture
A54: Riduzione superficie pagamenti (ha) | C54: =+C6*0.5*C53 ->  | D54: Superfici a seminativi X 0,5 X tasso di differenza
A56: Diversificazione: superamento soglia del 95% delle 2 colture | C56: 95 | D56: soglia
A57: % Colture principali | C57: =+(C16+C17)/C6*100 -> 
A58: Superficie da destinare ad altre colture | C58: =+C6*0.05 -> 0
A59: Tasso di differenza | C59: =+((C16+C17)-(B48+C48))/C58 ->  | D59: eccedenza limite /superficie altre colture
A60: Riduzione superficie pagamenti (ha) | C60: =+C6*0.5*C59 ->  | D60: Superfici a seminativi X 0,5 X tasso di differenza
A62: Diversificazione: superamento soglia del 75% prima coltura e del 95% delle 2 colture
A63: % coltura principale | C63: =+C16/C6*100 -> 
A64: % Coltura secondaria | C64: =+C17/C6*100 -> 
A65: Superficie da destinare ad altre colture | C65: =+C6*0.05 -> 0
A66: Tasso di differenza | C66: =+IF(C59+C53>1,1,C59+C53) ->  | D66: eccedenza limite /superficie altre colture
A67: Riduzione superficie pagamenti (ha) | C67: =+C6*0.5*C66 ->  | D67: Superfici a seminativi X 0,5 X tasso di differenza
A69: Riduzione superficie pagamenti da considerare per non rispetto diversificazione | C69: =+IF(AND(C51>C50,C57>C56),C67,IF(C51>C50,C54,IF(C57>C56,C60,0))) -> 
A72: Prati permanenti
A73: Riduzione superficie pagamenti da considerare per non rispetto prati permanenti | C73: =+C9 -> 0
A75: Aree di interesse ecologico
A76: EFA richiesta | C76: =+C6*0.05 -> 0
A77: Tasso di differenza | C77: =+(C76-EFA!G25)/C76 -> 
A78: Riduzione superficie pagamenti da considerare per non rispetto EFA (ha) | C78: =+IF(B45="No",0,IF(C76>EFA!G25,C6*0.5*C77,0)) -> 0
A80: Riduzione totale superficie pagamenti da considerare per non rispetto greening (ha) | C80: =+C78+C73+C69 -> 
A82: Sanzioni
A83: Riduzione percentuale superficie di calcolo | C83: =+C80/C4*100 -> 
A84: Superficie da utilizzare per il calcolo del pagamento greening se differenza non è maggiore del 20% | C84: =+C80*2 -> 
A85: Riduzione totale superficie considerando le sanzioni (ha) | C85: =+IF(OR(C83<3,C80<2),C80,IF(C83<20,C84,IF(C83>20,C4))) -> 

Sheet EFA (hidden)
A1: Calcolo Ecological Focus Area
A2: Elementi di EFA | B2: U.M. | C2: Efa Superficie prima della conversione | D2: Fattore di conversione (m/albero/m²) | E2: Fattore di ponderazione | F2: Efa (se si applicano entrambi i fattori) | G2: Superficie Efa convertita (m2)
A3: Terreni lasciati a riposo (per m²). | B3: m2 | D3: n.p. | E3: 1 | F3: 1 m2 | G3: =+C3*E3 -> 0
A4: Terrazze | B4: ml | D4: 2 | E4: 1 | F4: 2 m2 | G4: =+C4*D4*E4 -> 0
A5: Elementi caratteristici del paesaggio:
A6: a) Siepi/fasce alberate | B6: ml | D6: 5 | E6: 2 | F6: 10 m2 | G6: =+C6*D6*E6 -> 0
A7: b) Alberi isolati | B7: v.a. | D7: 20 | E7: 1.5 | F7: 30 m2 | G7: =+C7*D7*E7 -> 0
A8: c) Alberi in filari | B8: ml | D8: 5 | E8: 2 | F8: 10 m2 | G8: 0
A9: d) Gruppi di alberi/ boschetti | B9: m2 | D9: n.p. | E9: 1.5 | F9: 1,5 m2 | G9: =+C9*E9 -> 0 | H9: =+IF(C9>3000,"Attenzione la superficie non può oltrepassare gli 0,3 ha","") -> 
A10: e) Bordi dei campi | B10: ml | D10: 6 | E10: 1.5 | F10: 9 m2 | G10: 0
A11: f) Stagni | B11: m2 | D11: n.p. | E11: 1.5 | F11: 1,5 m2 | G11: =+C11*E11 -> 0
A12: g) Fossati | B12: ml | D12: 3 | E12: 2 | F12: 6 m2 | G12: 0
A13: h) Muretti di pietra tradizionali | B13: ml | D13: 1 | E13: 1 | F13: 1 m2 | G13: 0
A14: i) Altri elementi caratteristici adiacenti ai seminativi dell’azienda | B14: m2 | D14: n.p. | E14: 1 | F14: 1 m2 | G14: =+C14*E14 -> 0
A15: Fasce tampone | B15: ml | D15: 6 | E15: 1.5 | F15: 9 m2 | G15: 0
A16: Ettari agroforestali | B16: m2 | D16: n.p. | E16: 1 | F16: 1 m2 | G16: =+C16*E16 -> 0
A17: Fasce di ettari ammissibili lungo i bordi forestali: | B17: ml | G17: 0
A18: ü Senza produzione | B18: ml | D18: 6 | E18: 1.5 | F18: 9 m2 | G18: 0
A19: ü Con produzione | B19: ml | D19: 6 | E19: 0.3 | F19: 1,8 m2 | G19: 0
A20: Superfici con bosco ceduo a rotazione rapida | B20: m2 | D20: n.p | E20: 0.3 | F20: 0,3 m2 | G20: =+C20*E20 -> 0
A21: Superfici oggetto di imboschimento | B21: m2 | D21: n.p. | E21: 1 | F21: 1 m2 | G21: =+C21*E21 -> 0
A22: Superfici con colture azotofissatrici | B22: m2 | D22: n.p. | E22: 0.7 | F22: 0,7 m2 | G22: =+C22*E22 -> 0
A23: Superfici con colture intercalari o manto vegetale (*) | B23: m2 | D23: n.p. | E23: 0.3 | F23: 0,3 m2
A24: Totale= | F24: m2 | G24: =SUM(G3:G23) -> 0
F25: ha | G25: =+G24/10000 -> 0.00
A26: (*) L'Italia ha deciso di non utilizzare questo elemento di EFA.
